fUSD/lending_fUSD_20260228
["ID","MTS","AMOUNT","RATE_DAILY","PERIOD"]
[406941505,1772314241905,-3408.36820356,0.00016263,2]
[406941506,1772314241914,-500.0,0.00016356,2]
[406941507,1772314241924,-1100.0,0.00016356,2]
[406941508,1772314241933,-800.0,0.00016356,2]
[406941509,1772314241943,-166.66,0.00016399,2]
[406941510,1772314241953,-150.0,0.000164,2]
[406941511,1772314241963,-213.0,0.000164,2]
[406941512,1772314241972,-302.46,0.000164,2]
[406941513,1772314241982,-351.60728159,0.000164,2]
[406941514,1772314241991,-1298.53948142,0.00016416,2]
[406941515,1772314242000,-500.0,0.00016416,2]
[406941516,1772314242010,-779.13777388,0.00016416,2]
[406941517,1772314242020,-158.46,0.00016435,2]
[406941518,1772314242029,-2797.22,0.00016438,2]
[406941519,1772314242039,-228.15,0.00016438,2]
[406941520,1772314242048,-266.81662109,0.00016438,2]
[406941521,1772314242059,-3408.36820356,0.00016467,2]
[406941522,1772314242069,-1600.0,0.00016469,2]
[406941523,1772314242079,-166.43359048,0.00016531,2]
[406941524,1772314242089,-1100.44088479,0.00016563,2]
[406941525,1772314242099,-1277.0,0.00016598,2]
[406941526,1772314242108,-1211.0,0.00016598,2]
[406941527,1772314242118,-921.0,0.00016598,2]
[406941528,1772314242128,-639.821,0.00016598,2]
[406941529,1772314242138,-1340.0,0.00016598,2]
[406941530,1772314242148,-162.996,0.00016598,2]
[406941531,1772314242165,-166.99,0.00016666,2]
[406941532,1772314242175,-3408.36820356,0.00016672,2]
[406941533,1772314242184,-1914.28,0.00016676,2]
[406941534,1772314242195,-2846.0,0.0001672,2]
[406941535,1772314242204,-150.0,0.00016839,2]
[406941536,1772314242214,-269.0,0.00016839,2]
[406941537,1772314242223,-3408.36820356,0.00016877,2]
[406941538,1772314242232,-1100.44088479,0.00016897,2]
[406941539,1772314242242,-308.99,0.00016947,2]
[406941540,1772314242252,-500.0,0.00017,5]
[406941541,1772314242262,-326.0,0.0001704,2]
[406941542,1772314242271,-845.0,0.0001704,2]
[406941543,1772314242280,-3408.36820356,0.00017081,2]
[406941544,1772314242290,-151.0,0.00017107,2]
[406941545,1772314242299,-54459.19858468,0.0001711,2]
[406941546,1772314242308,-218.23034,0.0001711,2]
[406941547,1772314242318,-151.0,0.0001711,2]
[406941548,1772314242328,-151.0,0.0001711,2]
[406941549,1772314242337,-151.0,0.0001711,2]
[406941550,1772314242347,-151.0,0.0001711,2]
[406941551,1772314242356,-151.0,0.0001711,2]
[406941552,1772314242366,-151.0,0.0001711,2]
[406941553,1772314242376,-151.0,0.0001711,2]
[406941554,1772314242386,-166.43359048,0.00017216,2]
[406941555,1772314242396,-168.0,0.00017218,2]
[406941556,1772314242408,-1100.44088479,0.00017231,2]
[406941557,1772314242418,-3408.36820356,0.00017286,2]
[406941558,1772314242427,-168.0,0.00017424,2]
[406941559,1772314242436,-151.0,0.0001743,2]
[406941560,1772314242451,-151.0,0.0001743,2]
[406941561,1772314242461,-151.0,0.0001743,2]
[406941562,1772314242470,-271.75102,0.0001743,2]
[406941563,1772314242480,-151.0,0.0001743,2]
[406941564,1772314242491,-151.0,0.0001743,2]
[406941565,1772314242501,-151.0,0.0001743,2]
[406941566,1772314242511,-212.078952,0.0001743,2]
[406941567,1772314242522,-3408.36820356,0.00017491,2]
[406941568,1772314242531,-214.75633691,0.000175,2]
[406941569,1772314242541,-1100.44088479,0.00017566,2]
[406941570,1772314242550,-9114.3807822,0.00017603,2]
[406941571,1772314242560,-168.0,0.00017677,2]
[406941572,1772314242570,-3408.36820356,0.00017695,2]
[406941573,1772314242580,-441.0,0.00017719,2]
[406941574,1772314242589,-441.0,0.00017725,2]
[406941575,1772314242599,-500.0,0.00017726,7]
[406941576,1772314242608,-1100.0,0.00017726,7]
[406941577,1772314242618,-800.0,0.00017726,7]
[406941578,1772314242628,-441.0,0.00017735,2]
[406941579,1772314242639,-441.0,0.00017752,2]
[406941580,1772314242650,-264.6499789,0.0001776,2]
[406941581,1772314242659,-441.0,0.00017769,2]
[406941582,1772314242668,-441.0,0.00017782,2]
[406941583,1772314242677,-781.9309025,0.00017793,2]
[406941584,1772314242686,-30909.9584381,0.0001782,2]
[406941585,1772314242695,-6367.4819863,0.0001782,2]
[406941586,1772314242705,-441.0,0.00017823,2]
[406941587,1772314242715,-1000.0,0.00017879,2]
[406941588,1772314242725,-500.0,0.00017882,2]
[406941589,1772314242735,-151.0,0.00017882,2]
[406941590,1772314242744,-151.0,0.00017882,2]
[406941591,1772314242753,-151.0,0.00017882,2]
[406941592,1772314242763,-25000.0,0.00017882,3]
[406941593,1772314242774,-25000.0,0.00017882,3]
[406941594,1772314242783,-151.0,0.00017888,2]
[406941595,1772314242793,-151.0,0.00017891,2]
[406941596,1772314242802,-151.0,0.00017891,2]
[406941597,1772314242811,-151.0,0.00017891,2]
[406941598,1772314242820,-151.0,0.00017891,2]
[406941599,1772314242830,-151.0,0.00017891,2]
[406941600,1772314242839,-25000.0,0.00017891,3]
[406941601,1772314242849,-25000.0,0.00017891,3]
[406941602,1772314242858,-5000.0,0.00017899,2]
[406941603,1772314242867,-10000.0,0.00017899,2]
[406941604,1772314242876,-508.46543711,0.00017899,2]
[406941605,1772314242885,-151.0,0.00017899,2]
[406941606,1772314242894,-151.0,0.00017899,2]
[406941607,1772314242903,-25000.0,0.000179,3]
[406941608,1772314242912,-10625.04010309,0.000179,3]
[406941609,1772314242920,-166.43359048,0.000179,2]
[406941610,1772314242929,-25000.0,0.000179,3]
[406941611,1772314242938,-25000.0,0.000179,3]
[406941612,1772314242949,-151.0,0.000179,2]
[406941613,1772314242958,-151.0,0.000179,2]
[406941614,1772314242968,-151.0,0.000179,2]
[406941615,1772314242977,-151.0,0.000179,2]
[406941616,1772314242985,-151.0,0.000179,2]
[406941617,1772314242994,-151.0,0.000179,2]
[406941618,1772314243003,-3408.36820356,0.000179,2]
[406941619,1772314243012,-599.6513193,0.000179,2]
[406941620,1772314243021,-659.5148265,0.000179,2]
[406941621,1772314243030,-330.97890704,0.000179,2]
[406941622,1772314243040,-6478.20176063,0.000179,2]
[406941623,1772314243050,-1100.44088479,0.000179,2]
[406941624,1772314243059,-441.0,0.00017901,2]
[406941625,1772314243068,-441.0,0.00017933,2]
[406941626,1772314243079,-441.0,0.00017942,2]
[406941627,1772314243088,-441.0,0.00017947,2]
[406941628,1772314243098,-152.72607117,0.00017948,2]
[406941629,1772314243107,-1600.0,0.00017966,2]
[406941630,1772314243117,-441.0,0.00017973,2]
[406941631,1772314243129,-441.0,0.00017981,2]
[406941632,1772314243148,-175.7331849,0.00017984,3]
[406941633,1772314243159,-500.0,0.00017988,2]
[406941634,1772314243168,-190.56335456,0.0001799,2]
[406941635,1772314243178,-151.0,0.00017997,2]
[406941636,1772314243188,-500.0,0.00017999,2]
[406941637,1772314243196,-500.0,0.00017999,2]
[406941638,1772314243206,-500.0,0.00017999,2]
[406941639,1772314243214,-500.0,0.00017999,2]
[406941640,1772314243225,-500.0,0.00017999,2]
[406941641,1772314243234,-500.0,0.00017999,2]
[406941642,1772314243243,-636.62718079,0.00017999,2]
[406941643,1772314243254,-342150.27036913,0.00018,2]
[406941644,1772314243272,-277.1987,0.00018,2]
[406941645,1772314243287,-252.0785917,0.00018,2]
[406941646,1772314243343,-1365.94,0.00014396,2]
[406941647,1772314243356,-1134.06,0.00014396,2]
[406941648,1772314243367,-1512.53,0.00016356,2]
[406941649,1772314243377,-1698.26172635,0.00018,2]
[406941650,1772314243388,-6860.98442173,0.00018,2]
[406941651,1772314243400,-443.4506406,0.00018,2]
[406941652,1772314243412,-41385.8502866,0.00018,2]
[406941653,1772314243427,-649.48481584,0.00018,2]
[406941654,1772314246077,-14109.93592049,0.00018,2]
[406941655,1772314246088,-1062.9261746,0.00018,2]
[406941656,1772314246407,-3949.06120022,0.00018,2]
[406941675,1772314748392,169.900106,7.945e-05,2]
[406941679,1772314954460,1265.65,0.0001,10]
[406941692,1772315107358,1460.0,0.0001707,120]
[406941701,1772315432174,-778.78,0.00011507,2]
[406941702,1772315432185,-300.0,0.00011542,2]
[406941703,1772315432197,-300.0,0.00011577,2]
[406941704,1772315432208,-223.6698,0.00011746,2]
[406941705,1772315432220,-290.900693,0.00011956,2]
[406941706,1772315432233,-515.0,0.00012069,2]
[406941707,1772315432245,-1200.0,0.00012069,2]
[406941708,1772315432256,-300.0,0.00012069,2]
[406941709,1772315432267,-857.36758301,0.0001207,2]
[406941710,1772315432278,-500.0,0.0001207,2]
[406941711,1772315432289,-500.0,0.0001207,2]
[406941712,1772315432299,-500.0,0.0001207,2]
[406941713,1772315432311,-264.563332,0.00012201,2]
[406941714,1772315432324,-158.47,0.00012263,2]
[406941715,1772315432336,-150.0,0.00012361,2]
[406941716,1772315432347,-150.0,0.00012383,2]
[406941717,1772315432359,-410.17071519,0.00012383,2]
[406941718,1772315432371,-43634.38551591,0.00012384,2]
[406941719,1772315432382,-174.540415,0.00012586,2]
[406941720,1772315432394,-300.0,0.00012658,2]
[406941721,1772315432405,-300.0,0.00012658,2]
[406941723,1772315432417,-702.0,0.00012683,2]
[406941725,1772315432428,-414.78496111,0.000127,2]
[406941729,1772315432451,-85.21503889,0.000127,2]
[406941731,1772315432463,-423.21736339,0.000127,2]
[406941733,1772315432473,-253.0,0.0001276,2]
[406941735,1772315432485,-2978.5,0.00013068,2]
[406941738,1772315432501,-1000.0,0.00013248,2]
[406941740,1772315432512,-299.99,0.00013248,2]
[406941742,1772315432523,-150.99,0.00013248,2]
[406941744,1772315432534,-311.82,0.00013248,2]
[406941747,1772315432545,-9294.57,0.00013248,2]
[406941749,1772315432556,-300.0,0.00013248,2]
[406941751,1772315432568,-1680.0,0.00013276,2]
[406941753,1772315432578,-1852.42,0.0001334,2]
[406941755,1772315432590,-349.0,0.00013429,2]
[406941758,1772315432601,-23818.55321281,0.00013452,2]
[406941760,1772315432613,-500.0,0.00013453,2]
[406941762,1772315432627,-299.0,0.00013456,2]
[406941765,1772315432639,-255.0,0.00013473,2]
[406941767,1772315432650,-489.49024923,0.0001359,2]
[406941769,1772315432662,-500.0,0.0001359,2]
[406941771,1772315432673,-500.0,0.0001359,2]
[406941773,1772315432685,-500.0,0.0001359,2]
[406941775,1772315432695,-500.0,0.0001359,2]
[406941777,1772315432705,-500.0,0.0001359,2]
[406941779,1772315432715,-500.0,0.0001359,2]
[406941781,1772315432726,-500.0,0.0001359,2]
[406941784,1772315432737,-500.0,0.0001359,2]
[406941786,1772315432751,-545.91487603,0.0001359,2]
[406941787,1772315432763,-151.0,0.0001359,2]
[406941788,1772315432776,-151.0,0.0001359,2]
[406941789,1772315432788,-151.0,0.0001359,2]
[406941790,1772315432798,-151.0,0.0001359,2]
[406941791,1772315432808,-1689.0,0.00013591,2]
[406941792,1772315432820,-3345.77,0.00013717,2]
[406941793,1772315432830,-10474.24657663,0.00013766,2]
[406941794,1772315432841,-1500.0,0.00013796,2]
[406941795,1772315432852,-500.0,0.00013864,2]
[406941796,1772315432868,-3243.38736099,0.00013867,2]
[406941797,1772315432880,-151.0,0.00013957,2]
[406941798,1772315432890,-6745.127,0.0001396,2]
[406941799,1772315432900,-35209.49314139,0.0001396,2]
[406941800,1772315432914,-23623.15625861,0.0001396,2]
[406941801,1772315432925,-3393.27733448,0.00013967,2]
[406941802,1772315432939,-26681.68506921,0.00013967,2]
[406941803,1772315432951,-3345.77,0.0001406,2]
[406941804,1772315432962,-526.0,0.0001411,2]
[406941805,1772315432973,-17996.54715839,0.00014115,2]
[406941806,1772315432985,-1769.0,0.00014168,2]
[406941807,1772315432996,-1658.0,0.00014197,2]
[406941808,1772315433006,-3243.38736093,0.00014315,2]
[406941809,1772315433017,-2000.0,0.00014344,2]
[406941810,1772315433028,-1000.0,0.00014396,2]
[406941811,1772315433038,-2500.0,0.00014401,2]
[406941812,1772315433049,-3345.77,0.00014403,2]
[406941813,1772315433063,-2552.3773334,0.00014488,2]
[406941814,1772315433075,-1707.0,0.00014603,2]
[406941815,1772315433086,-433.0,0.00014662,2]
[406941816,1772315433098,-500.0,0.00014729,2]
[406941817,1772315433109,-500.0,0.00014729,2]
[406941818,1772315433122,-3345.77,0.00014746,2]
[406941819,1772315433132,-500.0,0.00014748,2]
[406941820,1772315433144,-500.0,0.00014748,2]
[406941821,1772315433155,-500.0,0.00014748,2]
[406941822,1772315433167,-500.0,0.00014748,2]
[406941823,1772315433177,-500.0,0.00014748,2]
[406941824,1772315433188,-500.0,0.00014748,2]
[406941825,1772315433198,-500.0,0.00014748,2]
[406941826,1772315433209,-500.0,0.00014748,2]
[406941827,1772315433220,-500.0,0.00014748,2]
[406941828,1772315433231,-500.0,0.00014748,2]
[406941829,1772315433244,-500.0,0.00014748,2]
[406941830,1772315433256,-500.0,0.00014748,2]
[406941831,1772315433267,-668.65185757,0.00014748,2]
[406941832,1772315433281,-3243.38736093,0.00014763,2]
[406941833,1772315433293,-500.0,0.00014773,2]
[406941834,1772315433304,-500.0,0.00014773,2]
[406941835,1772315433314,-500.0,0.00014773,2]
[406941836,1772315433325,-500.0,0.00014773,2]
[406941837,1772315433335,-500.0,0.00014773,2]
[406941838,1772315433346,-500.0,0.00014773,2]
[406941839,1772315433357,-500.0,0.00014773,2]
[406941840,1772315433367,-500.0,0.00014773,2]
[406941841,1772315433377,-500.0,0.00014773,2]
[406941842,1772315433388,-500.0,0.00014773,2]
[406941843,1772315433399,-500.0,0.00014773,2]
[406941844,1772315433410,-500.0,0.00014773,2]
[406941845,1772315433421,-500.0,0.00014773,2]
[406941846,1772315433432,-500.0,0.00014773,2]
[406941847,1772315433443,-500.0,0.00014773,2]
[406941848,1772315433454,-1500.0,0.00014785,2]
[406941849,1772315433465,-693.3919763,0.00014803,2]
[406941850,1772315433476,-719.04747942,0.00014858,2]
[406941851,1772315433487,-909.26496398,0.00014892,2]
[406941852,1772315433499,-745.65223616,0.00014913,2]
[406941853,1772315433510,-321.92725322,0.00014968,2]
[406941854,1772315433602,-451.31411568,0.00014968,2]
[406941855,1772315433611,-801.85129955,0.00015023,2]
[406941856,1772315433620,-831.51979763,0.00015078,2]
[406941857,1772315433629,-3345.77,0.00015089,2]
[406941858,1772315433638,-862.28603014,0.00015133,2]
[406941859,1772315433648,-894.19061326,0.00015188,2]
[406941860,1772315433657,-250.0,0.00015204,2]
[406941861,1772315433667,-2152.57789429,0.00015211,2]
[406941862,1772315433678,-254.14013485,0.00015211,2]
[406941863,1772315433689,-787.27893922,0.00015211,2]
[406941864,1772315433899,-49.39039257,0.00015211,2]
[406941865,1772315433913,-209.26609643,0.00015243,2]
[406941866,1772315433925,-632.866641,0.00015243,2]
[406941880,1772315440525,-8190.51,0.00012341,2]
[406941881,1772315440535,-85.14292852,0.00015243,2]
[406941882,1772315440545,-961.58486559,0.00015298,2]
[406941883,1772315440555,-247.77184833,0.00015321,2]
[406941884,1772315440565,-1000.0,0.00015321,2]
[406941885,1772315440574,-1000.0,0.00015321,2]
[406941886,1772315440584,-1000.0,0.00015321,2]
[406941887,1772315440593,-1000.0,0.00015321,2]
[406941888,1772315440603,-1000.0,0.00015321,2]
[406941889,1772315440612,-500.0,0.00015321,2]
[406941890,1772315440622,-618.86499239,0.00015321,2]
[406941891,1772315440631,-1000.0,0.00015321,2]
[406941892,1772315440640,-203.36470484,0.00015321,2]
[406941893,1772315440650,-1000.0,0.00015321,2]
[406941894,1772315440660,-509.53925467,0.00015321,2]
[406941895,1772315440670,-1000.0,0.00015321,2]
[406941896,1772315440680,-997.16350561,0.00015353,2]
[406941897,1772315440690,-5358.63568826,0.0001536,2]
[406941898,1772315440699,-151.0,0.00015457,2]
[406941899,1772315440709,-288.6436,0.0001546,2]
[406941900,1772315440719,-31034.8864,0.0001546,2]
[406941901,1772315440728,-5000.0,0.0001546,2]
[406941902,1772315440739,-199.8837731,0.0001546,2]
[406941903,1772315440751,-460.16988652,0.0001546,2]
[406941904,1772315440763,-2776.37218313,0.0001546,2]
[406941905,1772315440772,-193.07102912,0.0001546,2]
[406941906,1772315440782,-384.71698214,0.0001546,2]
[406941907,1772315440792,-3032.42989748,0.0001546,2]
[406941908,1772315440803,-185.714352,0.00015493,7]
[406941909,1772315440812,-184.83187915,0.0001555,2]
[406941910,1772315440822,-151.0,0.00015557,2]
[406941911,1772315440834,-508.46543711,0.00015559,2]
[406941912,1772315440844,-821216.56755797,0.0001556,2]
[406941913,1772315440950,-26720.85925298,0.0001556,2]
[406941914,1772315440966,-1260.5527819,0.0001556,2]
[406941931,1772315443361,-343.10411232,0.0001556,2]
[406941934,1772315443372,-845.8417515,0.0001556,2]
[406941935,1772315443588,-1788.0,0.0001556,2]
[406941948,1772315446393,-9021.87,0.0001556,2]
[406941956,1772315948218,521.37882404,0.000105,3]
[406941969,1772316170048,163.1,6.963e-05,2]
[406941999,1772316631432,-163.1,8.102e-05,2]
[406942000,1772316631442,-300.0,8.387e-05,2]
[406942001,1772316631452,-271.50227644,8.672e-05,2]
[406942002,1772316631462,-3.20344633,8.912e-05,2]
[406942003,1772316631486,-296.79655367,8.912e-05,2]
[406942004,1772316631501,-226.01,8.912e-05,2]
[406942005,1772316631511,-500.0,9.003e-05,2]
[406942006,1772316631521,-300.0,9.004e-05,2]
[406942007,1772316631530,-163.1,9.242e-05,2]
[406942008,1772316631540,-300.0,9.999e-05,2]
[406942009,1772316631550,-587.0,9.999e-05,2]
[406942010,1772316631560,-9288.86963157,0.0001,2]
[406942011,1772316631571,-997.171992,0.0001,2]
[406942012,1772316631587,-2704.22837643,0.0001,2]
[406942013,1772316631597,-163.1,0.00010381,2]
[406942014,1772316631607,-250.0,0.00010706,2]
[406942015,1772316631616,-420.0,0.00010999,2]
[406942016,1772316631625,-8872.51466545,0.00011,2]
[406942017,1772316631637,-588.5974847,0.00011,2]
[406942018,1772316631648,-350.097704,0.00011315,2]
[406942019,1772316631657,-163.1,0.0001152,2]
[406942020,1772316631667,-238.43,0.00011811,2]
[406942021,1772316631677,-200.0,0.00012024,2]
[406942022,1772316631687,-150.0,0.00012027,2]
[406942023,1772316631700,-150.0,0.00012069,2]
[406942024,1772316631710,-500.0,0.0001207,2]
[406942026,1772316631720,-500.0,0.0001207,2]
[406942028,1772316631729,-500.0,0.0001207,2]
[406942030,1772316631738,-500.97875071,0.0001207,2]
[406942032,1772316631747,-500.0,0.0001207,2]
[406942034,1772316631756,-500.0,0.0001207,2]
[406942036,1772316631766,-500.0,0.0001207,2]
[406942038,1772316631776,-500.0,0.0001207,2]
[406942040,1772316631786,-500.0,0.0001207,2]
[406942041,1772316631795,-3644.05,0.00012095,2]
[406942042,1772316631806,-8653.16,0.00012117,2]
[406942043,1772316631816,-7669.92,0.00012164,2]
[406942044,1772316631826,-1600.0,0.00012191,2]
[406942045,1772316631835,-163.1,0.0001266,2]
[406942046,1772316631845,-166.66,0.00012694,2]
[406942047,1772316631855,-166.66,0.00012961,2]
[406942048,1772316631865,-4993.76060363,0.00013,15]
[406942049,1772316631875,-166.66,0.00013045,2]
[406942050,1772316631884,-205.732207,0.00013071,2]
[406942051,1772316631896,-255.0,0.00013155,2]
[406942052,1772316631906,-166.66,0.00013228,2]
[406942053,1772316631916,-3165.53626139,0.00013426,2]
[406942054,1772316631926,-500.0,0.00013428,2]
[406942055,1772316631935,-500.0,0.00013428,2]
[406942056,1772316631944,-500.0,0.00013428,2]
[406942057,1772316631954,-500.0,0.00013428,2]
[406942058,1772316631965,-500.0,0.00013428,2]
[406942059,1772316631974,-500.0,0.00013428,2]
[406942060,1772316631984,-622.08269568,0.00013428,2]
[406942061,1772316631994,-500.0,0.00013428,2]
[406942062,1772316632004,-222.30735036,0.00013428,2]
[406942063,1772316632013,-151.0,0.00013428,2]
[406942064,1772316632023,-151.0,0.00013428,2]
[406942065,1772316632033,-151.0,0.00013428,2]
[406942066,1772316632044,-151.0,0.00013428,2]
[406942067,1772316632054,-151.0,0.00013428,2]
[406942068,1772316632063,-151.0,0.00013428,2]
[406942069,1772316632075,-151.0,0.00013428,2]
[406942070,1772316632087,-151.0,0.00013428,2]
[406942071,1772316632097,-151.0,0.00013428,2]
[406942072,1772316632107,-151.0,0.00013428,2]
[406942073,1772316632118,-151.0,0.00013428,2]
[406942074,1772316632127,-151.0,0.00013428,2]
[406942075,1772316632137,-500.0,0.00013428,2]
[406942076,1772316632147,-1000.0,0.00013435,2]
[406942077,1772316632157,-48379.33,0.00013436,2]
[406942078,1772316632167,-9778.8504751,0.0001346,2]
[406942079,1772316632179,-1254.41808677,0.0001346,2]
[406942080,1772316632191,-570.90143813,0.0001346,2]
[406942081,1772316632201,-166.66,0.00013476,2]
[406942082,1772316632211,-1134.00424006,0.00013494,2]
[406942164,1772316639606,-416.74754248,0.00013494,2]
[406942165,1772316639688,-168.82684107,0.00013494,2]
[406942166,1772316639701,-2590.48137639,0.00013494,2]
[406942167,1772316639711,-166.66,0.00013495,2]
[406942168,1772316639722,-2302.39660594,0.00013659,2]
[406942169,1772316639731,-2500.0,0.0001366,2]
[406942170,1772316639741,-199.8837731,0.00013663,2]
[406942171,1772316639751,-2776.37218313,0.00013663,2]
[406942172,1772316639761,-5358.63568826,0.00013663,2]
[406942173,1772316639770,-193.07102912,0.00013663,2]
[406942174,1772316639780,-384.71698214,0.00013663,2]
[406942175,1772316639789,-1600.0,0.00013715,2]
[406942176,1772316639798,-1126.16,0.00013726,2]
[406942177,1772316639808,-184.83187915,0.0001375,2]
[406942178,1772316639818,-151.0,0.00013756,2]
[406942179,1772316639827,-151.0,0.00013757,2]
[406942180,1772316639836,-534.14208811,0.00013759,2]
[406942181,1772316639845,-531.59893413,0.00013759,2]
[406942182,1772316639854,-500.0,0.00013759,2]
[406942183,1772316639863,-500.0,0.00013759,2]
[406942184,1772316639873,-500.0,0.00013759,2]
[406942185,1772316639882,-500.0,0.00013759,2]
[406942186,1772316639891,-286.59300001,0.00013759,2]
[406942187,1772316639901,-500.0,0.00013759,2]
[406942188,1772316639910,-500.0,0.00013759,2]
[406942189,1772316639919,-500.0,0.00013759,2]
[406942190,1772316639929,-500.0,0.00013759,2]
[406942191,1772316639939,-500.0,0.00013759,2]
[406942192,1772316639948,-500.0,0.00013759,2]
[406942193,1772316639957,-500.0,0.00013759,2]
[406942194,1772316639966,-500.0,0.00013759,2]
[406942195,1772316639976,-500.0,0.00013759,2]
[406942196,1772316639986,-177.0064701,0.00013759,2]
[406942197,1772316639995,-500.0,0.00013759,2]
[406942198,1772316640004,-500.0,0.00013759,2]
[406942199,1772316640014,-189.02021491,0.00013759,2]
[406942200,1772316640024,-500.0,0.00013759,2]
[406942201,1772316640034,-500.0,0.00013759,2]
[406942202,1772316640043,-500.0,0.00013759,2]
[406942203,1772316640053,-500.0,0.00013759,2]
[406942204,1772316640062,-300.0,0.00013759,2]
[406942205,1772316640075,-500.0,0.00013759,2]
[406942206,1772316640084,-500.0,0.00013759,2]
[406942207,1772316640094,-500.0,0.00013759,2]
[406942208,1772316640103,-500.0,0.00013759,2]
[406942209,1772316640113,-500.0,0.00013759,2]
[406942210,1772316640123,-500.0,0.00013759,2]
[406942211,1772316640132,-500.0,0.00013759,2]
[406942212,1772316640141,-500.0,0.00013759,2]
[406942213,1772316640153,-500.0,0.00013759,2]
[406942214,1772316640163,-500.0,0.00013759,2]
[406942215,1772316640172,-500.0,0.00013759,2]
[406942216,1772316640182,-500.0,0.00013759,2]
[406942217,1772316640192,-500.0,0.00013759,2]
[406942218,1772316640201,-500.0,0.00013759,2]
[406942219,1772316640211,-500.0,0.00013759,2]
[406942220,1772316640221,-500.0,0.00013759,2]
[406942221,1772316640231,-500.0,0.00013759,2]
[406942222,1772316640242,-500.0,0.00013759,2]
[406942223,1772316640251,-500.0,0.00013759,2]
[406942224,1772316640260,-500.0,0.00013759,2]
[406942225,1772316640269,-500.0,0.00013759,2]
[406942226,1772316640277,-500.0,0.00013759,2]
[406942227,1772316640286,-500.0,0.00013759,2]
[406942228,1772316640295,-500.0,0.00013759,2]
[406942229,1772316640305,-500.0,0.00013759,2]
[406942230,1772316640314,-500.0,0.00013759,2]
[406942231,1772316640323,-500.0,0.00013759,2]
[406942232,1772316640332,-500.0,0.00013759,2]
[406942233,1772316640341,-404.42290705,0.00013759,2]
[406942234,1772316640351,-500.0,0.00013759,2]
[406942235,1772316640360,-500.0,0.00013759,2]
[406942236,1772316640370,-500.0,0.00013759,2]
[406942237,1772316640380,-500.0,0.00013759,2]
[406942238,1772316640391,-500.0,0.00013759,2]
[406942239,1772316640401,-500.0,0.00013759,2]
[406942240,1772316640411,-500.0,0.00013759,2]
[406942241,1772316640422,-500.0,0.00013759,2]
[406942242,1772316640433,-500.0,0.00013759,2]
[406942243,1772316640443,-500.0,0.00013759,2]
[406942244,1772316640454,-500.0,0.00013759,2]
[406942245,1772316640464,-500.0,0.00013759,2]
[406942246,1772316640474,-500.0,0.00013759,2]
[406942247,1772316640484,-500.0,0.00013759,2]
[406942248,1772316640494,-500.0,0.00013759,2]
[406942249,1772316640504,-500.0,0.00013759,2]
[406942250,1772316640513,-500.0,0.00013759,2]
[406942251,1772316640523,-500.0,0.00013759,2]
[406942252,1772316640533,-500.0,0.00013759,2]
[406942253,1772316640542,-500.0,0.00013759,2]
[406942254,1772316640557,-500.0,0.00013759,2]
[406942255,1772316640567,-500.0,0.00013759,2]
[406942256,1772316640577,-500.0,0.00013759,2]
[406942257,1772316640586,-500.0,0.00013759,2]
[406942258,1772316640596,-500.0,0.00013759,2]
[406942259,1772316640611,-500.0,0.00013759,2]
[406942260,1772316640621,-500.0,0.00013759,2]
[406942261,1772316640630,-500.0,0.00013759,2]